[Event "The Schackveckan 2023: Göteborg open"]
[Site "Göteborgs schackcentrum, Vegagatan 20, Gothenburg, Sweden"]
[Date "2023.08.11"]
[Round "2.9"]
[White "Kosmidis, Thomas"]
[Black "Eriksson, Kristian"]
[Result "0-1"]
[TimeControl "15 minutes + 5 seconds per move from move one (Round 1 - 4) / 90 minutes + 30 seconds per move from move one (Round 5 - 8)"]
[WhiteFideId "1753380"]
[BlackFideId "1705172"]
[WhiteElo "1721"]
[BlackElo "2057"]

1. d4 {[%clk 00:15:08]} {[%emt 00:00:02]} Nf6 {[%clk 00:15:08]} {[%emt
00:00:02]} 2. c4 {[%clk 00:15:11]} {[%emt 00:00:02]} e6 {[%clk 00:15:10]}
{[%emt 00:00:03]} 3. Nc3 {[%clk 00:15:12]} {[%emt 00:00:03]} Bb4 {[%clk
00:15:12]} {[%emt 00:00:03]} 4. Qc2 {[%clk 00:15:07]} {[%emt 00:00:11]} O-O
{[%clk 00:15:06]} {[%emt 00:00:11]} 5. e3 {[%clk 00:15:09]} {[%emt 00:00:02]}
c5 {[%clk 00:14:58]} {[%emt 00:00:13]} 6. a3 {[%clk 00:15:06]} {[%emt
00:00:10]} Bxc3+ {[%clk 00:15:00]} {[%emt 00:00:02]} 7. bxc3 {[%clk 00:15:05]}
{[%emt 00:00:05]} d6 {[%clk 00:14:50]} {[%emt 00:00:15]} 8. Bd3 {[%clk
00:15:07]} {[%emt 00:00:03]} e5 {[%clk 00:14:29]} {[%emt 00:00:26]} 9. d5
{[%clk 00:14:43]} {[%emt 00:00:30]} Nbd7 {[%clk 00:13:36]} {[%emt 00:00:58]} 10.
Ne2 {[%clk 00:14:21]} {[%emt 00:00:28]} b5 {[%clk 00:13:00]} {[%emt 00:00:41]}
11. e4 {[%clk 00:14:08]} {[%emt 00:00:17]} bxc4 {[%clk 00:12:47]} {[%emt
00:00:18]} 12. Bxc4 {[%clk 00:14:10]} {[%emt 00:00:03]} Nb6 {[%clk 00:12:40]}
{[%emt 00:00:12]} 13. Ba2 {[%clk 00:13:55]} {[%emt 00:00:20]} Bd7 {[%clk
00:11:52]} {[%emt 00:00:53]} 14. O-O {[%clk 00:13:36]} {[%emt 00:00:24]} Ba4
{[%clk 00:11:25]} {[%emt 00:00:32]} 15. Qd3 {[%clk 00:13:11]} {[%emt 00:00:30]}
Rb8 {[%clk 00:10:37]} {[%emt 00:00:54]} 16. Bg5 {[%clk 00:12:48]} {[%emt
00:00:27]} h6 {[%clk 00:10:29]} {[%emt 00:00:13]} 17. Bh4 {[%clk 00:11:51]}
{[%emt 00:01:02]} g5 {[%clk 00:10:31]} {[%emt 00:00:03]} 18. Bg3 {[%clk
00:11:55]} {[%emt 00:00:01]} Qe7 {[%clk 00:09:51]} {[%emt 00:00:45]} 19. f3
{[%clk 00:11:14]} {[%emt 00:00:46]} Nh5 {[%clk 00:09:31]} {[%emt 00:00:25]} 20.
Rab1 {[%clk 00:10:55]} {[%emt 00:00:24]} Bd7 {[%clk 00:08:45]} {[%emt
00:00:52]} 21. Qa6 {[%clk 00:09:50]} {[%emt 00:01:10]} Bc8 {[%clk 00:08:41]}
{[%emt 00:00:09]} 22. Qd3 {[%clk 00:09:38]} {[%emt 00:00:16]} f5 {[%clk
00:08:30]} {[%emt 00:00:17]} 23. c4 {[%clk 00:09:04]} {[%emt 00:00:39]} fxe4
{[%clk 00:08:04]} {[%emt 00:00:30]} 24. fxe4 {[%clk 00:08:44]} {[%emt
00:00:25]} Bg4 {[%clk 00:07:29]} {[%emt 00:00:39]} 25. Bb3 {[%clk 00:07:26]}
{[%emt 00:01:24]} Bxe2 {[%clk 00:06:45]} {[%emt 00:00:49]} 26. Qxe2 {[%clk
00:07:11]} {[%emt 00:00:20]} Nf4 {[%clk 00:05:53]} {[%emt 00:00:58]} 27. Bxf4
{[%clk 00:07:04]} {[%emt 00:00:12]} exf4 {[%clk 00:05:56]} 28. Bc2 {[%clk
00:06:46]} {[%emt 00:00:23]} Nd7 {[%clk 00:05:57]} {[%emt 00:00:04]} 29. Qh5
{[%clk 00:06:11]} {[%emt 00:00:40]} Kg7 {[%clk 00:05:59]} {[%emt 00:00:04]} 30.
e5 {[%clk 00:04:57]} {[%emt 00:01:18]} Nxe5 {[%clk 00:05:59]} {[%emt 00:00:05]}
31. Rbe1 {[%clk 00:05:02]} {[%emt 00:00:01]} Qf7 {[%clk 00:05:32]} {[%emt
00:00:31]} 32. Qe2 {[%clk 00:04:57]} {[%emt 00:00:10]} Rb2 {[%clk 00:04:46]}
{[%emt 00:00:51]} 33. Qe4 {[%clk 00:05:00]} {[%emt 00:00:02]} Kh8 {[%clk
00:03:37]} {[%emt 00:01:14]} 34. Bb1 {[%clk 00:04:37]} {[%emt 00:00:28]} Rbb8
{[%clk 00:03:31]} {[%emt 00:00:11]} 35. h4 {[%clk 00:04:02]} {[%emt 00:00:41]}
Rbe8 {[%clk 00:03:35]} 36. hxg5 {[%clk 00:03:48]} {[%emt 00:00:19]} hxg5 {[%clk
00:03:39]} {[%emt 00:00:01]} 37. Qc2 {[%clk 00:03:30]} {[%emt 00:00:23]} Qh5
{[%emt 00:02:03]} 38. Rxe5 {[%clk 00:01:44]} Rxe5 {[%clk 00:03:29]} {[%emt
00:00:08]} 39. Rf3 {[%clk 00:01:48]} Re1+ {[%clk 00:03:24]} {[%emt 00:00:10]}
40. Rf1 {[%clk 00:01:49]} {[%emt 00:00:03]} Rxf1+ {[%clk 00:03:23]} {[%emt
00:00:06]} 41. Kxf1 {[%clk 00:01:53]} {[%emt 00:00:01]} f3 {[%clk 00:03:21]}
{[%emt 00:00:07]} 42. g4 {[%clk 00:00:58]} {[%emt 00:01:01]} Qh1+ {[%clk
00:03:18]} {[%emt 00:00:07]} 43. Kf2 {[%clk 00:00:59]} {[%emt 00:00:04]} Qg2+
{[%clk 00:03:22]} {[%emt 00:00:02]} 44. Ke3 {[%clk 00:01:01]} {[%emt 00:00:03]}
Qxc2 {[%clk 00:03:25]} {[%emt 00:00:02]} 45. Bxc2 {[%clk 00:01:04]} f2 {[%clk
00:03:28]} {[%emt 00:00:02]} 0-1

[Event "The Schackveckan 2023: Göteborg open"]
[Site "Göteborgs schackcentrum, Vegagatan 20, Gothenburg, Sweden"]
[Date "2023.08.11"]
[Round "2.10"]
[White "Degerfeldt, Sven"]
[Black "Mohammed, Safian Haj"]
[Result "0-1"]
[TimeControl "15 minutes + 5 seconds per move from move one (Round 1 - 4) / 90 minutes + 30 seconds per move from move one (Round 5 - 8)"]
[WhiteFideId "1717430"]
[BlackFideId "1729276"]
[WhiteElo "1821"]
[BlackElo "1862"]

1. d4 {[%clk 00:15:07]} {[%emt 00:00:02]} Nf6 {[%clk 00:15:08]} {[%emt
00:00:04]} 2. Nf3 {[%clk 00:15:09]} {[%emt 00:00:02]} g6 {[%clk 00:15:03]}
{[%emt 00:00:10]} 3. g3 {[%clk 00:15:12]} {[%emt 00:00:01]} Bg7 {[%clk
00:15:03]} {[%emt 00:00:05]} 4. Bg2 {[%clk 00:15:15]} {[%emt 00:00:02]} c5
{[%clk 00:14:44]} {[%emt 00:00:24]} 5. c3 {[%clk 00:15:13]} {[%emt 00:00:07]}
cxd4 {[%clk 00:14:21]} {[%emt 00:00:29]} 6. cxd4 {[%clk 00:15:15]} {[%emt
00:00:02]} d5 {[%clk 00:14:19]} {[%emt 00:00:07]} 7. Nc3 {[%clk 00:15:17]}
{[%emt 00:00:03]} O-O {[%clk 00:14:16]} {[%emt 00:00:08]} 8. O-O {[%clk
00:15:19]} {[%emt 00:00:03]} e6 {[%clk 00:14:11]} {[%emt 00:00:10]} 9. Bg5
{[%clk 00:13:05]} {[%emt 00:02:19]} h6 {[%clk 00:14:03]} {[%emt 00:00:13]} 10.
Bf4 {[%clk 00:13:06]} {[%emt 00:00:04]} Nc6 {[%clk 00:13:51]} {[%emt 00:00:17]}
11. h4 {[%clk 00:11:26]} {[%emt 00:01:44]} Nh5 {[%clk 00:13:39]} {[%emt
00:00:18]} 12. Qd2 {[%clk 00:10:17]} {[%emt 00:01:14]} Nxf4 {[%clk 00:13:22]}
{[%emt 00:00:22]} 13. Qxf4 {[%clk 00:10:18]} {[%emt 00:00:03]} Qb6 {[%clk
00:12:48]} {[%emt 00:00:39]} 14. b3 {[%clk 00:09:14]} {[%emt 00:01:10]} Nxd4
{[%clk 00:12:35]} {[%emt 00:00:19]} 15. Rac1 {[%clk 00:07:37]} {[%emt
00:01:41]} Nxf3+ {[%clk 00:12:17]} {[%emt 00:00:24]} 16. Bxf3 {[%clk 00:07:38]}
{[%emt 00:00:03]} Bd7 {[%clk 00:11:29]} {[%emt 00:00:53]} 17. Rfd1 {[%clk
00:06:57]} {[%emt 00:00:45]} Rac8 {[%clk 00:11:26]} {[%emt 00:00:09]} 18. Na4
{[%clk 00:05:47]} {[%emt 00:01:15]} Bxa4 {[%clk 00:10:10]} {[%emt 00:01:21]} 19.
Qxa4 {[%clk 00:05:48]} {[%emt 00:00:04]} a6 {[%clk 00:09:37]} {[%emt 00:00:37]}
20. Qd7 {[%clk 00:05:13]} {[%emt 00:00:40]} Rcd8 {[%clk 00:08:49]} {[%emt
00:00:54]} 21. Qc7 {[%clk 00:04:35]} {[%emt 00:00:43]} Qb4 {[%clk 00:05:39]}
{[%emt 00:03:15]} 22. e3 {[%clk 00:03:59]} {[%emt 00:00:40]} Bb2 {[%clk
00:04:17]} {[%emt 00:01:28]} 23. Rc2 {[%clk 00:03:46]} {[%emt 00:00:17]} Rc8
{[%clk 00:03:32]} {[%emt 00:00:51]} 24. Qxc8 {[%clk 00:03:33]} {[%emt
00:00:18]} Rxc8 {[%clk 00:03:36]} {[%emt 00:00:02]} 25. Rxc8+ {[%clk 00:03:36]}
Kg7 {[%clk 00:03:39]} {[%emt 00:00:02]} 26. Rc2 {[%clk 00:03:12]} {[%emt
00:00:28]} Be5 {[%clk 00:03:16]} {[%emt 00:00:29]} 27. Kg2 {[%clk 00:03:07]}
{[%emt 00:00:10]} b5 {[%clk 00:03:06]} {[%emt 00:00:16]} 28. Rc6 {[%clk
00:02:47]} {[%emt 00:00:24]} Qa5 {[%clk 00:03:06]} {[%emt 00:00:05]} 29. Rc2
{[%clk 00:02:36]} {[%emt 00:00:15]} Qb4 {[%clk 00:02:39]} {[%emt 00:00:32]} 30.
Be2 {[%clk 00:02:28]} {[%emt 00:00:13]} d4 {[%clk 00:02:29]} {[%emt 00:00:16]}
31. e4 {[%clk 00:02:13]} {[%emt 00:00:18]} f5 {[%clk 00:02:09]} {[%emt
00:00:26]} 32. f4 {[%clk 00:02:07]} {[%emt 00:00:12]} fxe4 {[%clk 00:01:42]}
{[%emt 00:00:32]} 33. fxe5 {[%clk 00:02:01]} {[%emt 00:00:10]} d3 {[%clk
00:01:13]} {[%emt 00:00:34]} 34. Rc7+ {[%clk 00:02:04]} {[%emt 00:00:02]} Kf8
{[%clk 00:01:07]} {[%emt 00:00:11]} 35. Rf1+ {[%clk 00:02:03]} {[%emt
00:00:06]} Ke8 {[%clk 00:01:10]} 36. Bg4 {[%clk 00:01:52]} {[%emt 00:00:17]}
Qd2+ {[%clk 00:01:08]} {[%emt 00:00:08]} 37. Rf2 {[%clk 00:01:53]} {[%emt
00:00:04]} Qa5 {[%clk 00:01:06]} {[%emt 00:00:07]} 38. Rff7 {[%clk 00:01:39]}
{[%emt 00:00:18]} Qd2+ {[%clk 00:00:27]} {[%emt 00:00:44]} 39. Kh3 {[%clk
00:01:43]} {[%emt 00:00:02]} Qe1 {[%clk 00:00:26]} {[%emt 00:00:05]} 40. Rce7+
{[%clk 00:01:07]} {[%emt 00:00:41]} Kd8 {[%clk 00:00:30]} {[%emt 00:00:02]} 41.
Bxe6 {[%clk 00:01:10]} {[%emt 00:00:01]} Qh1+ {[%clk 00:00:12]} {[%emt
00:00:24]} 42. Kg4 {[%clk 00:01:13]} {[%emt 00:00:01]} Qd1+ {[%clk 00:00:14]}
{[%emt 00:00:04]} 43. Kf4 {[%clk 00:01:01]} {[%emt 00:00:15]} Qe2 {[%emt
00:00:12]} 0-1

[Event "The Schackveckan 2023: Göteborg open"]
[Site "Göteborgs schackcentrum, Vegagatan 20, Gothenburg, Sweden"]
[Date "2023.08.11"]
[Round "2.11"]
[White "Lindholm, Marcus"]
[Black "Sandberg, Lucas"]
[Result "0-1"]
[TimeControl "15 minutes + 5 seconds per move from move one (Round 1 - 4) / 90 minutes + 30 seconds per move from move one (Round 5 - 8)"]
[WhiteFideId "1743473"]
[BlackFideId "1773712"]
[WhiteElo "1708"]
[BlackElo "1311"]

1. d4 {[%clk 00:15:08]} {[%emt 00:00:02]} Nf6 {[%clk 00:15:09]} {[%emt
00:00:01]} 2. Bg5 {[%clk 00:15:11]} {[%emt 00:00:02]} Ne4 {[%clk 00:15:13]}
{[%emt 00:00:01]} 3. h4 {[%clk 00:15:14]} {[%emt 00:00:01]} h6 {[%clk
00:15:13]} {[%emt 00:00:05]} 4. Bf4 {[%clk 00:15:16]} {[%emt 00:00:04]} d5
{[%clk 00:15:17]} {[%emt 00:00:01]} 5. Nd2 {[%clk 00:15:14]} {[%emt 00:00:07]}
Bf5 {[%clk 00:14:59]} {[%emt 00:00:22]} 6. e3 {[%clk 00:14:47]} {[%emt
00:00:32]} c5 {[%clk 00:14:37]} {[%emt 00:00:28]} 7. Nxe4 {[%clk 00:14:42]}
{[%emt 00:00:09]} Bxe4 {[%clk 00:14:28]} {[%emt 00:00:14]} 8. Bxb8 {[%clk
00:14:45]} {[%emt 00:00:02]} Qxb8 {[%clk 00:14:26]} {[%emt 00:00:08]} 9. Bb5+
{[%clk 00:14:46]} {[%emt 00:00:04]} Kd8 {[%clk 00:14:30]} {[%emt 00:00:01]} 10.
dxc5 {[%clk 00:14:20]} {[%emt 00:00:31]} a6 {[%clk 00:13:54]} {[%emt 00:00:40]}
11. Bc4 {[%clk 00:13:34]} {[%emt 00:00:51]} e6 {[%clk 00:13:55]} {[%emt
00:00:04]} 12. Nf3 {[%clk 00:13:24]} {[%emt 00:00:16]} Bxc5 {[%clk 00:13:47]}
{[%emt 00:00:13]} 13. Bd3 {[%clk 00:13:18]} {[%emt 00:00:10]} Bxd3 {[%clk
00:13:25]} {[%emt 00:00:27]} 14. Qxd3 {[%clk 00:13:20]} {[%emt 00:00:03]} Ke7
{[%clk 00:13:17]} {[%emt 00:00:14]} 15. O-O-O {[%clk 00:13:00]} {[%emt
00:00:25]} Qc7 {[%clk 00:12:12]} {[%emt 00:01:10]} 16. Qc3 {[%clk 00:12:54]}
{[%emt 00:00:11]} Kf8 {[%clk 00:11:56]} {[%emt 00:00:21]} 17. g4 {[%clk
00:12:33]} {[%emt 00:00:25]} Bd6 {[%clk 00:11:42]} {[%emt 00:00:20]} 18. Qd3
{[%clk 00:12:20]} {[%emt 00:00:18]} Rc8 {[%clk 00:10:37]} {[%emt 00:01:10]} 19.
Kb1 {[%clk 00:12:12]} {[%emt 00:00:13]} Be7 {[%clk 00:10:13]} {[%emt 00:00:29]}
20. Nd4 {[%clk 00:11:53]} {[%emt 00:00:24]} Qc4 {[%clk 00:10:09]} {[%emt
00:00:09]} 21. Qd2 {[%clk 00:11:34]} {[%emt 00:00:23]} g6 {[%clk 00:09:24]}
{[%emt 00:00:51]} 22. f4 {[%clk 00:11:21]} {[%emt 00:00:18]} Kg7 {[%clk
00:08:56]} {[%emt 00:00:33]} 23. f5 {[%clk 00:11:18]} {[%emt 00:00:08]} e5
{[%clk 00:08:59]} {[%emt 00:00:02]} 24. Nf3 {[%clk 00:10:48]} {[%emt 00:00:35]}
e4 {[%clk 00:07:31]} {[%emt 00:01:32]} 25. Ne5 {[%clk 00:09:32]} {[%emt
00:01:22]} Qc7 {[%clk 00:07:10]} {[%emt 00:00:26]} 26. Qxd5 {[%clk 00:09:33]}
{[%emt 00:00:04]} Bf6 {[%clk 00:07:12]} {[%emt 00:00:03]} 27. Nd7 {[%clk
00:08:43]} {[%emt 00:00:54]} Qxc2+ {[%clk 00:07:12]} {[%emt 00:00:05]} 0-1

[Event "The Schackveckan 2023: Göteborg open"]
[Site "Göteborgs schackcentrum, Vegagatan 20, Gothenburg, Sweden"]
[Date "2023.08.11"]
[Round "2.12"]
[White "Pintaric, Felix"]
[Black "Wengholm, Anders"]
[Result "1-0"]
[TimeControl "15 minutes + 5 seconds per move from move one (Round 1 - 4) / 90 minutes + 30 seconds per move from move one (Round 5 - 8)"]
[WhiteFideId "1776096"]
[BlackFideId "1704818"]
[WhiteElo "1483"]
[BlackElo "2155"]

1. e4 {[%clk 00:15:08]} {[%emt 00:00:02]} c5 {[%clk 00:15:09]} {[%emt
00:00:02]} 2. c3 {[%clk 00:15:11]} {[%emt 00:00:01]} Nf6 {[%clk 00:15:07]}
{[%emt 00:00:07]} 3. e5 {[%clk 00:15:15]} {[%emt 00:00:02]} Nd5 {[%clk
00:15:11]} 4. d4 {[%clk 00:15:19]} {[%emt 00:00:02]} cxd4 {[%clk 00:15:12]}
{[%emt 00:00:04]} 5. Nf3 {[%clk 00:15:22]} {[%emt 00:00:02]} e6 {[%clk
00:15:16]} {[%emt 00:00:01]} 6. cxd4 {[%clk 00:15:26]} {[%emt 00:00:01]} b6
{[%clk 00:15:16]} {[%emt 00:00:05]} 7. Bc4 {[%clk 00:14:34]} {[%emt 00:00:56]}
Ba6 {[%clk 00:15:07]} {[%emt 00:00:15]} 8. Bxa6 {[%clk 00:14:26]} {[%emt
00:00:12]} Nxa6 {[%clk 00:15:11]} {[%emt 00:00:02]} 9. O-O {[%clk 00:14:22]}
{[%emt 00:00:09]} Be7 {[%clk 00:15:07]} {[%emt 00:00:09]} 10. Nc3 {[%clk
00:14:24]} {[%emt 00:00:03]} Nac7 {[%clk 00:15:03]} {[%emt 00:00:09]} 11. Bd2
{[%clk 00:13:54]} {[%emt 00:00:35]} O-O {[%clk 00:15:05]} {[%emt 00:00:03]} 12.
Rc1 {[%clk 00:13:45]} {[%emt 00:00:14]} f6 {[%clk 00:14:24]} {[%emt 00:00:46]}
13. Ne4 {[%clk 00:13:11]} {[%emt 00:00:38]} Qe8 {[%clk 00:12:29]} {[%emt
00:02:00]} 14. Qe2 {[%clk 00:12:26]} {[%emt 00:00:50]} Rc8 {[%clk 00:12:06]}
{[%emt 00:00:28]} 15. Rc2 {[%clk 00:11:57]} {[%emt 00:00:34]} Na8 {[%clk
00:09:43]} {[%emt 00:02:28]} 16. Rfc1 {[%clk 00:10:37]} {[%emt 00:01:26]} Rxc2
{[%clk 00:09:28]} {[%emt 00:00:20]} 17. Rxc2 {[%clk 00:10:41]} Nac7 {[%clk
00:08:29]} {[%emt 00:01:06]} 18. a3 {[%clk 00:09:50]} {[%emt 00:00:55]} Qb8
{[%clk 00:07:14]} {[%emt 00:01:19]} 19. Qd1 {[%clk 00:09:20]} {[%emt 00:00:35]}
a6 {[%clk 00:06:11]} {[%emt 00:01:08]} 20. h3 {[%clk 00:08:52]} {[%emt
00:00:34]} Qb7 {[%clk 00:04:22]} {[%emt 00:01:53]} 21. Qc1 {[%clk 00:07:49]}
{[%emt 00:01:07]} a5 {[%clk 00:03:52]} {[%emt 00:00:37]} 22. Ne1 {[%clk
00:06:10]} {[%emt 00:01:44]} Na6 {[%clk 00:02:35]} {[%emt 00:01:22]} 23. Nc3
{[%clk 00:04:47]} {[%emt 00:01:27]} fxe5 {[%clk 00:02:01]} {[%emt 00:00:39]} 24.
dxe5 {[%clk 00:04:44]} {[%emt 00:00:08]} Nc5 {[%clk 00:01:43]} {[%emt
00:00:24]} 25. Nf3 {[%clk 00:03:45]} {[%emt 00:01:04]} Nd3 {[%clk 00:00:44]}
{[%emt 00:01:04]} 26. Qf1 {[%clk 00:03:47]} {[%emt 00:00:02]} Rxf3 {[%clk
00:00:38]} {[%emt 00:00:10]} 27. gxf3 {[%clk 00:03:37]} {[%emt 00:00:16]} Nxe5
{[%clk 00:00:42]} {[%emt 00:00:02]} 28. Qg2 {[%clk 00:03:03]} {[%emt 00:00:38]}
Kf7 {[%clk 00:00:33]} {[%emt 00:00:14]} 29. Ne4 {[%clk 00:02:29]} {[%emt
00:00:39]} h6 {[%clk 00:00:29]} {[%emt 00:00:09]} 30. f4 {[%clk 00:02:03]}
{[%emt 00:00:31]} Nd3 {[%clk 00:00:17]} {[%emt 00:00:20]} 31. Be3 {[%clk
00:01:36]} {[%emt 00:00:29]} Qb8 {[%clk 00:00:07]} {[%emt 00:00:15]} 32. Ng3
{[%clk 00:01:11]} {[%emt 00:00:30]} Ne1 {[%clk 00:00:10]} {[%emt 00:00:01]} 33.
Qe4 {[%clk 00:01:04]} {[%emt 00:00:13]} Nxc2 {[%clk 00:00:14]} {[%emt
00:00:01]} 34. Qxc2 {[%clk 00:01:08]} 1-0

[Event "The Schackveckan 2023: Göteborg open"]
[Site "Göteborgs schackcentrum, Vegagatan 20, Gothenburg, Sweden"]
[Date "2023.08.11"]
[Round "2.13"]
[White "Westlund, Tim"]
[Black "Imani Lasaki, Hamed"]
[Result "1-0"]
[TimeControl "15 minutes + 5 seconds per move from move one (Round 1 - 4) / 90 minutes + 30 seconds per move from move one (Round 5 - 8)"]
[WhiteFideId "1754718"]
[BlackFideId "1766970"]
[WhiteElo "1861"]
[BlackElo "1624"]

1. e4 {[%clk 00:15:09]} e5 {[%clk 00:15:09]} {[%emt 00:00:01]} 2. Nf3 {[%clk
00:15:12]} {[%emt 00:00:02]} Nc6 {[%clk 00:15:12]} {[%emt 00:00:02]} 3. Bc4
{[%clk 00:15:15]} {[%emt 00:00:02]} Bc5 {[%clk 00:15:15]} {[%emt 00:00:02]} 4.
d3 {[%clk 00:15:18]} {[%emt 00:00:02]} Nf6 {[%clk 00:15:04]} {[%emt 00:00:16]}
5. c3 {[%clk 00:15:18]} {[%emt 00:00:05]} Na5 {[%clk 00:14:56]} {[%emt
00:00:12]} 6. Nxe5 {[%clk 00:14:34]} {[%emt 00:00:50]} Nxc4 {[%clk 00:14:57]}
{[%emt 00:00:04]} 7. Nxc4 {[%clk 00:14:35]} {[%emt 00:00:04]} d5 {[%clk
00:14:32]} {[%emt 00:00:30]} 8. exd5 {[%clk 00:14:15]} {[%emt 00:00:24]} Qxd5
{[%clk 00:14:18]} {[%emt 00:00:20]} 9. Qe2+ {[%clk 00:14:03]} {[%emt 00:00:17]}
Be6 {[%clk 00:13:58]} {[%emt 00:00:25]} 10. O-O {[%clk 00:13:43]} {[%emt
00:00:25]} O-O-O {[%clk 00:13:11]} {[%emt 00:00:52]} 11. Ne5 {[%clk 00:11:39]}
{[%emt 00:02:09]} Rhe8 {[%clk 00:12:07]} {[%emt 00:01:09]} 12. d4 {[%clk
00:10:30]} {[%emt 00:01:15]} Bd6 {[%clk 00:09:38]} {[%emt 00:02:34]} 13. f4
{[%clk 00:09:08]} {[%emt 00:01:26]} g6 {[%clk 00:08:02]} {[%emt 00:01:42]} 14.
Nd2 {[%clk 00:08:45]} {[%emt 00:00:28]} h5 {[%clk 00:07:16]} {[%emt 00:00:50]}
15. Qf3 {[%clk 00:08:00]} {[%emt 00:00:49]} Ng4 {[%emt 00:00:32]} 16. Qxd5
{[%clk 00:06:18]} {[%emt 00:01:44]} Bxd5 {[%clk 00:06:55]} {[%emt 00:00:04]} 17.
Nxg4 {[%clk 00:06:19]} {[%emt 00:00:03]} hxg4 {[%clk 00:06:58]} {[%emt
00:00:03]} 18. c4 {[%clk 00:05:59]} {[%emt 00:00:25]} Be4 {[%clk 00:05:44]}
{[%emt 00:01:19]} 19. c5 {[%clk 00:04:11]} {[%emt 00:01:53]} Bf8 {[%clk
00:05:47]} {[%emt 00:00:01]} 20. Nb3 {[%clk 00:03:41]} {[%emt 00:00:35]} Bc2
{[%clk 00:05:32]} {[%emt 00:00:20]} 21. Bd2 {[%clk 00:03:15]} {[%emt 00:00:31]}
Bxb3 {[%clk 00:04:47]} {[%emt 00:00:49]} 22. axb3 {[%clk 00:03:18]} {[%emt
00:00:04]} Rxd4 {[%clk 00:04:49]} {[%emt 00:00:03]} 23. Bc3 {[%clk 00:03:17]}
{[%emt 00:00:05]} Rd3 {[%clk 00:04:17]} {[%emt 00:00:37]} 24. b4 {[%clk
00:02:56]} {[%emt 00:00:26]} a6 {[%clk 00:03:58]} {[%emt 00:00:24]} 25. Rae1
{[%clk 00:02:42]} {[%emt 00:00:18]} Ree3 {[%clk 00:02:57]} {[%emt 00:01:07]} 26.
Kf2 {[%clk 00:02:21]} {[%emt 00:00:26]} Rxe1 {[%clk 00:02:50]} {[%emt
00:00:12]} 27. Rxe1 {[%clk 00:02:24]} {[%emt 00:00:03]} Kd7 {[%clk 00:02:20]}
{[%emt 00:00:34]} 28. Re4 {[%clk 00:01:42]} {[%emt 00:00:47]} f5 {[%clk
00:02:10]} {[%emt 00:00:16]} 29. Rd4+ {[%clk 00:00:48]} {[%emt 00:00:59]} Rxd4
{[%clk 00:02:14]} {[%emt 00:00:01]} 30. Bxd4 {[%clk 00:00:51]} {[%emt
00:00:02]} Kc6 {[%clk 00:02:12]} {[%emt 00:00:07]} 31. Bc3 {[%clk 00:00:55]}
{[%emt 00:00:01]} Kd5 {[%clk 00:02:10]} {[%emt 00:00:07]} 32. Kg3 {[%clk
00:00:58]} Ke4 {[%clk 00:02:10]} {[%emt 00:00:05]} 33. Kh4 {[%clk 00:01:02]}
Be7 {[%clk 00:02:04]} {[%emt 00:00:11]} 34. Kg3 {[%clk 00:01:05]} {[%emt
00:00:02]} g5 {[%clk 00:01:57]} {[%emt 00:00:13]} 35. Bd2 {[%clk 00:00:58]}
{[%emt 00:00:11]} gxf4+ {[%clk 00:01:56]} {[%emt 00:00:06]} 36. Bxf4 {[%clk
00:00:58]} {[%emt 00:00:05]} c6 {[%clk 00:01:58]} {[%emt 00:00:03]} 37. Bd6
{[%clk 00:00:57]} {[%emt 00:00:06]} Bf6 {[%clk 00:02:02]} {[%emt 00:00:02]} 38.
b3 {[%clk 00:00:58]} {[%emt 00:00:04]} Bc3 {[%clk 00:02:01]} {[%emt 00:00:06]}
39. h3 {[%clk 00:00:50]} {[%emt 00:00:12]} gxh3 {[%clk 00:01:55]} {[%emt
00:00:11]} 40. gxh3 {[%clk 00:00:54]} {[%emt 00:00:01]} Bxb4 {[%clk 00:01:59]}
{[%emt 00:00:01]} 41. h4 {[%clk 00:00:56]} {[%emt 00:00:02]} b6 {[%clk
00:02:00]} {[%emt 00:00:05]} 42. h5 {[%clk 00:00:57]} {[%emt 00:00:04]} bxc5
{[%clk 00:01:55]} {[%emt 00:00:10]} 43. h6 {[%clk 00:00:54]} {[%emt 00:00:08]}
Kd5 {[%emt 00:00:19]} 44. Be5 {[%clk 00:00:36]} {[%emt 00:00:06]} f4+ {[%clk
00:01:32]} {[%emt 00:00:31]} 45. Kf3 {[%clk 00:00:37]} {[%emt 00:00:04]} Kxe5
{[%clk 00:01:25]} {[%emt 00:00:13]} 46. h7 {[%clk 00:00:40]} a5 {[%clk
00:00:56]} {[%emt 00:00:35]} 47. h8=Q+ {[%clk 00:00:42]} {[%emt 00:00:03]} Kd5
{[%clk 00:00:59]} {[%emt 00:00:02]} 48. Kxf4 {[%clk 00:00:42]} {[%emt
00:00:05]} Kd6 {[%emt 00:00:11]} 49. Qe5+ {[%clk 00:00:43]} {[%emt 00:00:02]}
Kd7 {[%clk 00:00:58]} 50. Kf5 {[%clk 00:00:46]} {[%emt 00:00:03]} Kc8 {[%clk
00:00:54]} {[%emt 00:00:08]} 51. Qd6 {[%clk 00:00:47]} {[%emt 00:00:05]} Kb7
{[%clk 00:00:58]} {[%emt 00:00:01]} 52. Ke6 {[%clk 00:00:49]} {[%emt 00:00:02]}
c4 {[%clk 00:00:57]} {[%emt 00:00:07]} 53. Qd7+ {[%clk 00:00:51]} {[%emt
00:00:03]} Kb6 {[%clk 00:01:00]} {[%emt 00:00:02]} 54. bxc4 {[%clk 00:00:54]}
{[%emt 00:00:02]} a4 {[%clk 00:00:58]} {[%emt 00:00:07]} 55. Qd4+ {[%clk
00:00:46]} {[%emt 00:00:12]} Bc5 {[%clk 00:00:59]} {[%emt 00:00:05]} 56. Qb2+
{[%clk 00:00:47]} {[%emt 00:00:03]} Ka5 {[%clk 00:01:00]} {[%emt 00:00:05]} 57.
Kd7 {[%clk 00:00:50]} a3 {[%clk 00:01:02]} {[%emt 00:00:04]} 58. Qb3 {[%clk
00:00:54]} {[%emt 00:00:01]} Bb4 {[%clk 00:00:55]} {[%emt 00:00:12]} 59. Kxc6
{[%clk 00:00:54]} {[%emt 00:00:04]} Ka6 {[%clk 00:00:47]} {[%emt 00:00:14]} 60.
Qa4+ {[%clk 00:00:52]} {[%emt 00:00:07]} Ba5 {[%clk 00:00:49]} {[%emt
00:00:02]} 61. Qxa3 {[%clk 00:00:55]} {[%emt 00:00:03]} 1-0